Cogmind - Beta 14 @@@ ROGUE MODE // 2024.09.10 @ 00:18:57 Player: Noot Result: Destroyed by G-47 Trooper with Particle Gun Performance ------------- Evolutions (0) 0 Regions Visited (2) 400 Robots Destroyed (15) 75 Value Destroyed (364) 364 Prototype IDs (2) 40 Alien Tech Used (0) 0 Bonus (0) 0 TOTAL SCORE: 879 Bonus ------- None Cogmind --------- Core Integrity 0/250 Matter 289/300 Energy 99/100 System Corruption 0% Temperature Cool (89) Movement Core (50) Location -10/Mines Parts ------- > --- POWER (1) -------- (None) > --- PROPULSION (2) --- (None) > --- UTILITY (2) ------ (None) > --- WEAPON (2) ------- Light Assault Rifle > --- INVENTORY (5) ---- Light Ion Engine Light Ion Engine High-capacity Matter Pod (200) Rocket Launcher Peak State ------------ > --- POWER ------------ Light Ion Engine > --- PROPULSION ------- Light Treads Wheel > --- UTILITY ---------- Improved Heat Sink Targeting Computer > --- WEAPON ----------- Medium Laser Medium Laser > --- INVENTORY -------- Aluminum Leg Aluminum Leg Medium Storage Unit High-capacity Matter Pod [Rating: 9] Favorites ----------- Power Light Ion Engine Engine Light Ion Engine Propulsion Aluminum Leg Treads Light Treads Leg Aluminum Leg Wheel Wheel Flight Unit Flight Unit Utility Improved Heat Sink Device Improved Heat Sink Storage High-capacity Storage Unit Processor Targeting Computer Weapon Medium Laser Energy Gun Medium Laser Ballistic Gun Assault Rifle Build | -11 -10 -10 ------- Run | Yrd Mat Min Slots Evolved . | . . . Power . | . . . Propulsion . | . . . Utility . | . . . Weapon . | . . . Parts Attached 28 | 9 11 8 Power 4 | 1 1 2 Engine 4 | 1 1 2 Core . | . . . Reactor . | . . . Propulsion 13 | 5 4 4 Treads 1 | . 1 . Leg 7 | 5 1 1 Wheel 2 | . 2 . Hover . | . . . Flight 3 | . . 3 Utility 5 | 1 3 1 Device 2 | 1 1 . Storage 1 | . . 1 Processor 2 | . 2 . Hackware . | . . . Protection . | . . . Artifact . | . . . Weapon 6 | 2 3 1 Energy Gun 4 | 1 3 . Energy Cannon . | . . . Ballistic Gun 2 | 1 . 1 Ballistic Cannon . | . . . Launcher . | . . . Special Weapon . | . . . Impact Weapon . | . . . Slashing Weapon . | . . . Piercing Weapon . | . . . Special Melee Weapon . | . . . Unidentified Prototypes . | . . . Parts Lost 9 | . 2 7 Power 2 | . 1 1 Propulsion 3 | . 1 2 Utility 2 | . . 2 Weapon 2 | . . 2 Highest Loss Streak 5 | . 1 5 To Critical Strikes . | . . . Average Slot Usage (%) 82 | . 83 82 Engine 8 | . 3 12 Treads 4 | . 7 1 Leg 9 | . 10 8 Wheel 5 | . 10 1 Flight 3 | . . 7 Device 13 | . 12 13 Processor 10 | . 11 9 Energy Gun 25 | . 23 26 Ballistic Gun 1 | . 2 . Peak Build Rating 9 | 6 8 9 Average Rating 6 | 2 7 7 On Entrance 4 | . 6 8 Naked Turns . | . . . Heaviest Build 8 | 8 8 8 Greatest Support 20 | 20 20 10 Greatest Overweight (x) 2 | . . 2 Average Overweight (x) . | . . . Largest Inventory Capacity 20 | 5 5 20 Average Capacity 5 | 5 5 5 Most Carried 5 | 4 5 5 Average Carried 3 | 1 3 4 Final Capacity 5 | 5 5 5 Final Carried 4 | 2 4 4 Class Distribution -------------------- 88% | Mutant 11% | Scavenger-Mutant Dominant Class ---------------- Mutant | -10/Materials Mutant | -10/Mines Resources | -11 -10 -10 ----------- Run | Yrd Mat Min Matter Collected 643 | 222 249 172 Remotely . | . . . Salvage Created 487 | 42 229 216 Parts 26 | 3 7 16 Haulers Intercepted . | . . . Recyclers Shooed . | . . . Parts Field Recycled . | . . . Retrieved Matter . | . . . Parts Self-Destructed . | . . . Prevented . | . . . Kills | -11 -10 -10 ------- Run | Yrd Mat Min Combat Hostiles Destroyed 14 | 1 4 9 Guns 13 | 1 3 9 Classes Destroyed 3 | 1 1 1 Recycler 1 | . 1 . Swarmer 6 | . . 6 Grunt 8 | 1 4 3 Best Kill Streak 3 | 1 2 3 Combat Bots Only 3 | 1 2 3 Max Kills in Single Turn 1 | 1 1 1 Gunslinging . | . . . Exploded . | . . . Melee . | . . . Uniques/NPCs Destroyed . | . . . Combat | -11 -10 -10 -------- Run | Yrd Mat Min Hostile Shots Fired 124 | 2 57 65 Missed 42 | 2 19 21 Damage Taken 986 | . 483 503 Core 251 | . 106 145 Absorbed by Shields . | . . . Core Remaining (%) 100 | 100 . . Volleys Fired 54 | 1 26 27 Largest 2 | 2 2 2 Hottest 100 | 70 100 100 Shots Fired 104 | 2 49 53 Gun 104 | 2 49 53 Cannon . | . . . Launcher . | . . . Special . | . . . Kinetic 7 | 1 . 6 Thermal 97 | 1 49 47 Explosive . | . . . Electromagnetic . | . . . Robot Hit Streak 7 | 1 7 7 Robot Miss Streak 5 | 1 2 5 Penetration Max . | . . . Secondary Targets . | . . . Shots Hit Robots 63 | 1 36 26 Core Hits 26 | 1 11 14 Critical Kills . | . . . Critical Parts Destroyed . | . . . Critical Strikes 3 | . 1 2 Burn 3 | . 1 2 Melee Attacks . | . . . Impact . | . . . Slashing . | . . . Piercing . | . . . Sneak Attacks . | . . . Combat Hostiles . | . . . Follow-up Attacks . | . . . Damage Inflicted 776 | 15 434 327 Guns 776 | 15 434 327 Cannons . | . . . Explosions . | . . . Melee . | . . . Ramming . | . . . Kinetic 41 | 15 . 26 Thermal 735 | . 434 301 Explosive . | . . . Electromagnetic . | . . . Impact . | . . . Slashing . | . . . Piercing . | . . . Highest Corruption . | . . . Average Corruption . | . . . Corruption Purged . | . . . Corruption Blocked . | . . . Overload Shots . | . . . Overflow Damage . | . . . Projectiles . | . . . Explosions . | . . . Melee . | . . . Knockbacks . | . . . Impact . | . . . Kinetic . | . . . Secondary . | . . . Self-Inflicted Damage . | . . . Shots . | . . . Rammed . | . . . Targets Rammed . | . . . Kicked . | . . . Crushed . | . . . Highest Temperature 237 | 9 237 80 Average Temperature 69 | 6 117 33 Received Heat Transfer 486 | . 270 216 Siege Activations . | . . . Robots Corrupted . | . . . Combat Hostiles . | . . . Parts Fried . | . . . Impact Corruptions . | . . . Robots Melted 1 | . 1 . Combat Hostiles 1 | . 1 . Parts Melted 4 | . 4 . Heat Transferred 2346 | . 1310 1036 Parts Sabotaged . | . . . Parts Stolen . | . . . Parts Stripped . | . . . Power Chain Reactions . | . . . Alert | -11 -10 -10 ------- Run | Yrd Mat Min Peak Influence 170 | 20 132 170 Initial 13 | . 13 . Average 58 | 2 37 92 Maximum Alert Level . | . . . Low Security (%) 100 | 100 100 100 Level 1 . | . . . Level 2 . | . . . Level 3 . | . . . Level 4 . | . . . Level 5 . | . . . High Security . | . . . Max Security . | . . . Squads Dispatched 2 | . 2 . Investigation 1 | . 1 . Extermination . | . . . Reinforcement 1 | . 1 . Assault . | . . . Garrison . | . . . Intercept . | . . . Searches Triggered . | . . . Construction Impeded . | . . . Haulers Reinforced . | . . . Active Scanning Responses . | . . . Cargo Convoy Interrupts . | . . . Stealth | -11 -10 -10 --------- Run | Yrd Mat Min Distress Signals . | . . . Communications Jammed . | . . . Distress Signals . | . . . Times Spotted 18 | 1 5 12 Peak Tracking Total 3 | 1 2 3 Tactical Retreats 1 | . . 1 Traps | -11 -10 -10 ------- Run | Yrd Mat Min Traps Triggered 2 | . 2 . Indirectly . | . . . Trap Hack Attempts . | . . . Triggered . | . . . Disarmed . | . . . Reprogrammed . | . . . Reused . | . . . Traps Extracted . | . . . Installed . | . . . Triggered . | . . . Machines | -11 -10 -10 ---------- Run | Yrd Mat Min Machines Disabled . | . . . Max in Single Turn . | . . . Machines Repaired . | . . . Machines Dismantled . | . . . Machines Sabotaged . | . . . Overloaded Fab Kills . | . . . Hacking | -11 -10 -10 --------- Run | Yrd Mat Min Machines Accessed 4 | . 3 1 Terminals 4 | . 3 1 Fabricators . | . . . Repair Stations . | . . . Recycling Units . | . . . Scanalyzers . | . . . Garrison Access . | . . . Total Hacks 10 | . 8 2 Successful 5 | . 5 . Failed 5 | . 3 2 Catastrophic 1 | . 1 . Database Lockouts . | . . . Manual 2 | . 2 . Terminals 10 | . 8 2 Fabricators . | . . . Repair Stations . | . . . Recycling Units . | . . . Scanalyzers . | . . . Garrison Access . | . . . Terminal Hacks 5 | . 5 . Record 4 | . 4 . Prototype ID Bank 1 | . 1 . Fabricator Hacks . | . . . Repair Station Hacks . | . . . Recycling Unit Hacks . | . . . Scanalyzer . | . . . Garrison Access Hacks . | . . . Unauthorized Hacks . | . . . Terminals . | . . . Fabricators . | . . . Repair Stations . | . . . Recycling Units . | . . . Scanalyzers . | . . . Garrison Access . | . . . Data Cores Recovered . | . . . Used . | . . . Hacking Detections 3 | . 2 1 Full Trace Events . | . . . Feedback Events . | . . . Feedback Blocked . | . . . Robot Schematics Acquired . | . . . Robots Built . | . . . Authchips . | . . . Time . | . . . Total Robot Build Rating . | . . . Part Schematics Acquired . | . . . Parts Built . | . . . Authchips . | . . . Time . | . . . Total Part Build Rating . | . . . Parts Repaired . | . . . Time . | . . . Parts Recycled . | . . . Recycled Matter . | . . . Retrieved Matter . | . . . Retrieved Components . | . . . Parts Scanalyzed . | . . . Part Schematics Acquired . | . . . Parts Damaged . | . . . Bothacking | -11 -10 -10 ------------ Run | Yrd Mat Min Used RIF Installer . | . . . Robots Hacked . | . . . Non-combat . | . . . Combat . | . . . Robot Hacks Applied . | . . . Relay Couplers Released . | . . . Fabnet Peak Effective % . | . . . Robots Rewired . | . . . Allies Hacked . | . . . Hacks Repelled . | . . . Allies | -11 -10 -10 -------- Run | Yrd Mat Min Total Allies . | . . . Largest Group . | . . . Highest-Rated Group . | . . . Highest-Rated Ally . | . . . Total Orders . | . . . Ally Attacks . | . . . Total Damage . | . . . Kills . | . . . Allies Corrupted . | . . . Allies Melted . | . . . Intel | -11 -10 -10 ------- Run | Yrd Mat Min Robot Analysis Total . | . . . Derelict Logs Recovered 1 | . . 1 Drone Launches . | . . . Drone Recoveries . | . . . Exploration | -11 -10 -10 ------------- Run | Yrd Mat Min Turns Passed 1349 | 139 613 597 Spaces Moved 1113 | 130 393 590 Core 60 | 55 . 5 Treads 150 | . 150 . Legs 466 | 75 142 249 Wheels 145 | . 101 44 Hover . | . . . Flight 292 | . . 292 Fastest Speed 37 | 50 80 37 Average Speed 96 | 90 124 78 Slowest Speed 160 | 120 160 150 Overloaded Moves . | . . . Propulsion Burnouts . | . . . Robots Hopped 1 | . . 1 Cave-ins Triggered . | . . . Exploration Rate (%) 43 | 5 55 69 Regions Visited 2 Branch Regions 1 Pre-discovered Areas 1 | . . 1 Known Exits Taken . | . . . Unknown Exits Taken 2 | 1 1 . Scrap Searched 3 | . . 3 Spaces Dug . | . . . Terrain Destroyed . | . . . Melee . | . . . Projectile . | . . . AOE . | . . . Terrain Rammed . | . . . Walls Destroyed . | . . . Machines Disabled . | . . . Actions | -11 -10 -10 --------- Run | Yrd Mat Min Total 1293 | 150 467 676 Wait 55 | . 21 34 Move 1109 | 129 392 588 Hop 1 | . . 1 Pick Up 18 | 7 6 5 Fast Attach 17 | 2 8 7 Attach 11 | 7 3 1 Detach 11 | 3 5 3 Swap . | . . . Drop 17 | 1 6 10 Fire 54 | 1 26 27 Melee . | . . . Ram . | . . . Kick . | . . . Crush . | . . . Escape Stasis . | . . . Rewire . | . . . Trap . | . . . Miscellaneous . | . . . Route ------- -11/Scrapyard -10/Materials (discovered 2 exits: [*Mat] / *Min) -10/Mines (discovered 1 exit: [*Mat]) History --------- Turn | Location | Event 2 | -11/Scrapyard | Met Revision 17 116 | -11/Scrapyard | Discovered new exit (range 8) 140 | -11/Scrapyard | Entered Materials 343 | -10/Materials | Build established: Mutant 538 | -10/Materials | Discovered new exit (range 7) 638 | -10/Materials | Discovered new exit (range 15) 753 | -10/Materials | Entered Mines 793 | -10/Mines | Core integrity fell below 50% 866 | -10/Mines | Learned location of Zion (-7) 1069 | -10/Mines | Discovered new exit (range 13) 1113 | -10/Mines | Received a Rocket Launcher from a helpful Derelict 1324 | -10/Mines | Core integrity fell below 20% 1350 | -10/Mines | Destroyed by G-47 Trooper with Particle Gun Last Messages --------------- 01155_ S-10 Pest destroyed. 01165_ Targeting Computer destroyed. 01166_ S-10 Pest destroyed. 01191_ Dropped Lgt. Ion Engine. 01196_ Acquired Lgt. Ion Engine. 01197_ R-06 Scavenger collects Lgt. Ion Engine. 01198_ Acquired 10 matter. 01200_ Acquired Flight Unit. 01201_ R-06 Scavenger collects Lgt. Ion Engine. 01202_ Dropped Flight Unit. 01210_ Dropped Hcp. Storage Unit. 01216_ Acquired Lgt. Assault Rifle. 01317_ Med. Laser destroyed. 01327_ Imp. Heat Sink destroyed. 01332_ Dropped Lgt. Assault Rifle. 01332_ Acquired Lgt. Assault Rifle. 01334_ Lgt. Ion Engine destroyed. 01342_ G-34 Mercenary destroyed. 01344_ Aluminum Leg destroyed. 01348_ Med. Laser destroyed. Map ----- +----------------------------------------------------+ | ## #????????????# ##???????## #?? | | ?## ##????????????# #????????## #?? | | ??## #???????####### ########### #?? | | ???## ##?????# < #?? | | ????## ##??????????### #?? | | ?????# #????????????## ###############?? | | ?????# #?????????????# ###???????????????? | | ?????## ##?????????????# #?????????????????? | | ??????###?????????###### #?????????????????? | | ??????????????????# #?????????????????? | | ??????????????????# ######?????????????????? | | ??????????????????# #??????????????????????? | | ??????????????????# #??????????????????????? | | ??????????????????# #######????????????????? | | ??????????????????# #????????????????? | | ??????????????????# ##### #????????????????? | | ??????????????????# #??## ##???????????????? | | ?????????????????## #?## ##??????????????? | | ????????????????## ### #??????????????? | | ????????????????# #??????????????? | | ????????????????# ##??????????????? | | ????????????????## [#???????????????? | | ?????????????????########g%#???????????????? | | ????????????????????????# #???????????????? | | ????????????????????????# #???????????????? | | ????????????????????????#@ #???????????????? | | ????????????????????????# #???????????????? | | ????????????????????????# #???????????????? | | ????????????????????????# #???????????????? | | ????????????????????????# ##??????????????? | | ????????????????????????# #??????????????? | | ????????????????????????## #??????????????? | | ?????????????????????????# ######?????????? | | ?????????????????????????# #?????????? | | ?????????????????????????# #########?? | | ?????????????????????????####### ## """" #?? | | ???????????????????????????????# ## """" #?? | | ???????????????????????????????# """" #?? | | ???????????????????????????????# %% #?? | | ???????????????????????????????#### = #?? | | ??????????????????????????????????# !=#?? | | ??????????????????????????????????# #?? | | ??????????????????????????????????########?? | | ???????????????????????????????????????????? | | ???????????????????????????????????????????? | | | | | | | | | | | +----------------------------------------------------+ Best States ------------- Heat Dissipation 39 Energy Generation 10 Energy Capacity 125 Matter Stores 300 Matter Capacity 300 Sight Range 16 Terrain Scan Density 10 Evasion (%) 62 Targeting Accuracy 5 Recoil Reduction 1 Item Schematics ----------------- None Robot Schematics ------------------ None Fabricated ------------ Nothing Alien Tech Used ----------------- None Achievements -------------- It's Just You Challenges ------------ None Game ------ Seed ModifiedExoskeletonNanovents Manual? 0 Play Time 00:48:35 Cumulative 3.4 hours Start 2024.09.09 @ 23:23:08 End 2024.09.10 @ 00:18:57 Sessions 1 Manual Loads 0 Difficulty Rogue Special Mode None Game No. 2 Rogue 2 Adventurer 0 Explorer 0 Win Type - Total 0 Types 0/0/0/0/0/0/0/0/0 Lore% 1 Gallery% 7 Achievement% 10 Wizard Run 0 Options --------- Layout 1 ASCII 0 Keyboard 1 Movement Vi Keybinds 0 Fullscreen 1 Font 24/Proggy Map View 50x35 Zoom Use 3% Tactical HUD 1 Map Filters NONE Filters NONE Steam 1 RUN: 67a68d05-e194-472d-985d-567d1799798d